[Event "DLM Youth 2024"]
[Site "Tuebingen"]
[Date "2024.10.03"]
[Round "1"]
[White "Noennig, Lotte"]
[Black "Wolf, Helena"]
[Result "1-0"]
[ECO "B78"]
[WhiteElo "1658"]
[BlackElo "1545"]
[Annotator "NA RC"]
[PlyCount "71"]
[EventDate "2024.10.03"]
[EventType "team-swiss"]
[EventRounds "7"]
[EventCountry "GER"]
[SourceTitle "playchess.com"]
[Source "ChessBase"]
[SourceQuality "1"]
[TimeControl "40/5400+30:1800+30"]

1. e4 {[%emt 0:00:03]} c5 {[%emt 0:00:07]} 2. Nf3 {[%emt 0:00:12]} d6 {[%emt 0:00:07]} 3. d4 {[%emt 0:00:18]} cxd4 {[%emt 0:00:08]} 4. Nxd4 {[%emt 0:00:12]} Nf6 {[%emt 0:00:06]} 5. Nc3 {[%emt 0:00:38]} g6 {[%emt 0:00:19]} 6. Be3 {[%emt 0:01:06]} Bg7 {[%emt 0:00:15]} 7. f3 {[%emt 0:02:24]} O-O {[%emt 0:00:12]} 8. Qd2 {[%emt 0:03:35]} Nc6 {[%emt 0:05:18]} 9. Bc4 {[%emt 0:01:25]} Bd7 {[%emt 0:01:15]} 10. O-O-O {[%emt 0:00:59]} Rc8 {[%emt 0:04:15]} 11. Bb3 {[%emt 0:01:13]} Na5 {[%emt 0:01:13]} 12. Kb1 {[%emt 0:01:40]} Nc4 {[%emt 0:08:14]} 13. Bxc4 {[%emt 0:00:23]} Rxc4 {[%emt 0:00:07]} 14. g4 {[%emt 0:01:52]} h5 {[%emt 0:26:42]} 15. gxh5 {[%emt 0:03:31]} Nxh5 {[%emt 0:00:13]} 16. Qe2 {[%emt 0:12:10]} Qc8 {[%emt 0:15:49]} 17. Qf2 {[%emt 0:08:18]} a6 {[%emt 0:06:05]} 18. f4 {[%emt 0:05:24]} e5 {[%emt 0:07:34]} 19. fxe5 {[%emt 0:11:01]} dxe5 {[%emt 0:00:35]} 20. Nde2 {[%emt 0:02:28]} Nf6 {[%emt 0:03:35]} 21. Qg2 {[%emt 0:07:50]} b5 {[%emt 0:04:39]} 22. Rd2 {[%emt 0:04:18]} b4 {[%emt 0:04:58]} 23. Nd5 {[%emt 0:01:40]} Nxd5 {[%emt 0:00:04]} 24. exd5 {[%emt 0:00:48]} Bf5 {[%emt 0:00:29]} 25. Ng3 {[%emt 0:01:57]} a5 {[%emt 0:03:01]} 26. Nxf5 {[%emt 0:01:03]} Qxf5 {[%emt 0:00:08]} 27. d6 {[%emt 0:01:59]} Qd7 {[%emt 0:02:24]} 28. h4 {[%emt 0:01:55]} Rc6 {[%emt 0:02:11]} 29. Rhd1 {[%emt 0:01:38]} Rd8 {[%emt 0:00:47]} 30. h5 {[%emt 0:03:02]} Kh7 {[%emt 0:02:38]} 31. hxg6+ {[%emt 0:01:18]} fxg6 {[%emt 0:00:12]} 32. Bg5 {[%emt 0:03:29]} Re8 {[%emt 0:01:38]} 33. Rh1+ {[%emt 0:01:08]} Kg8 {[%emt 0:00:14]} 34. Be7 {[%emt 0:01:13]} Rxe7 {[%emt 0:01:05]} 35. dxe7 {[%emt 0:01:08]} Qe6 {[%emt 0:00:12]} 36. Rd8+ {[%emt 0:01:09]} 1-0

[Event "DLM Youth 2024"]
[Site "Tuebingen"]
[Date "2024.10.03"]
[Round "1"]
[White "Stiehler, Mara"]
[Black "Albrecht, Sidney Jenna"]
[Result "1-0"]
[ECO "B31"]
[WhiteElo "1601"]
[BlackElo "1544"]
[Annotator "NA RC"]
[PlyCount "83"]
[EventDate "2024.10.03"]
[EventType "team-swiss"]
[EventRounds "7"]
[EventCountry "GER"]
[SourceTitle "playchess.com"]
[Source "ChessBase"]
[SourceQuality "1"]
[TimeControl "40/5400+30:1800+30"]

1. e4 {[%emt 0:00:30]} c5 {[%emt 0:00:30]} 2. Nf3 {[%emt 0:00:05]} Nc6 {[%emt 0:00:09]} 3. Nc3 {[%emt 0:00:04]} g6 {[%emt 0:00:19]} 4. Bb5 {[%emt 0:00:12]} Bg7 {[%emt 0:01:40]} 5. O-O {[%emt 0:00:13]} Nf6 {[%emt 0:00:21]} 6. e5 {[%emt 0:00:17]} Ng4 {[%emt 0:01:07]} 7. Bxc6 {[%emt 0:00:51]} bxc6 {[%emt 0:00:18]} 8. Re1 {[%emt 0:00:19]} O-O {[%emt 0:02:27]} 9. h3 {[%emt 0:00:47]} Nh6 {[%emt 0:00:21]} 10. d3 {[%emt 0:04:09]} Nf5 {[%emt 0:02:48]} 11. Bf4 {[%emt 0:02:19]} Ba6 {[%emt 0:05:54]} 12. Ne4 {[%emt 0:07:17]} Qb6 {[%emt 0:05:24]} 13. Rb1 {[%emt 0:08:15]} Nd4 {[%emt 0:02:42]} 14. Be3 {[%emt 0:08:19]} Ne6 {[%emt 0:10:22]} 15. b4 {[%emt 0:04:57]} Qc7 {[%emt 0:03:28]} 16. Bxc5 {[%emt 0:05:34]} Rfe8 {[%emt 0:04:01]} 17. c4 {[%emt 0:06:53]} Bxe5 {[%emt 0:03:22]} 18. Nxe5 {[%emt 0:00:15]} Qxe5 {[%emt 0:00:15]} 19. Nd6 {[%emt 0:04:20]} Qf6 {[%emt 0:04:05]} 20. Nxe8 {[%emt 0:00:00]} Rxe8 {[%emt 0:00:13]} 21. Bxa7 {[%emt 0:00:00]} Nf4 {[%emt 0:06:41]} 22. Qf3 {[%emt 0:02:57]} Nh5 {[%emt 0:08:33]} 23. Qxf6 {[%emt 0:00:23]} Nxf6 {[%emt 0:00:14]} 24. Bd4 {[%emt 0:02:04]} Nh5 {[%emt 0:02:19]} 25. b5 {[%emt 0:02:17]} cxb5 {[%emt 0:01:40]} 26. cxb5 {[%emt 0:00:13]} Bb7 {[%emt 0:00:26]} 27. g3 {[%emt 0:00:50]} e6 {[%emt 0:03:49]} 28. a4 {[%emt 0:00:42]} Ra8 {[%emt 0:02:09]} 29. Ra1 {[%emt 0:00:11]} d6 {[%emt 0:03:22]} 30. a5 {[%emt 0:01:17]} e5 {[%emt 0:02:18]} 31. a6 {[%emt 0:02:13]} Bc8 {[%emt 0:01:24]} 32. Be3 {[%emt 0:00:53]} Nf6 {[%emt 0:01:49]} 33. Rec1 {[%emt 0:02:31]} Nd7 {[%emt 0:01:59]} 34. a7 {[%emt 0:02:55]} d5 {[%emt 0:01:38]} 35. Rxc8+ {[%emt 0:00:34]} Rxc8 {[%emt 0:00:17]} 36. a8=Q {[%emt 0:00:08]} Rxa8 {[%emt 0:00:17]} 37. Rxa8+ {[%emt 0:00:06]} Kg7 {[%emt 0:00:14]} 38. Rd8 {[%emt 0:00:11]} Nf6 {[%emt 0:00:30]} 39. b6 {[%emt 0:00:06]} d4 {[%emt 0:01:06]} 40. Bg5 {[%emt 0:00:11]} h6 {[%emt 0:00:39]} 41. Bxf6+ {[%emt 0:30:07]} Kxf6 {[%emt 0:30:14]} 42. b7 {[%emt 0:00:05]} 1-0

[Event "DLM Youth 2024"]
[Site "Tuebingen"]
[Date "2024.10.03"]
[Round "1"]
[White "Margaryan, Mane"]
[Black "Busch, Lara Sophie"]
[Result "1-0"]
[ECO "D35"]
[WhiteElo "1493"]
[BlackElo "1714"]
[Annotator "NA RC"]
[PlyCount "87"]
[EventDate "2024.10.03"]
[EventType "team-swiss"]
[EventRounds "7"]
[EventCountry "GER"]
[SourceTitle "playchess.com"]
[Source "ChessBase"]
[SourceQuality "1"]
[TimeControl "40/5400+30:1800+30"]

1. d4 {[%emt 0:00:02]} d5 {[%emt 0:00:10]} 2. c4 {[%emt 0:00:03]} Nf6 {[%emt 0:00:16]} 3. Nc3 {[%emt 0:00:12]} e6 {[%emt 0:00:16]} 4. Bg5 {[%emt 0:00:25]} Be7 {[%emt 0:02:07]} 5. cxd5 {[%emt 0:00:55]} exd5 {[%emt 0:00:35]} 6. Nf3 {[%emt 0:02:00]} Bf5 {[%emt 0:02:50]} 7. e3 {[%emt 0:01:36]} c6 {[%emt 0:01:01]} 8. Bd3 {[%emt 0:01:38]} Bxd3 {[%emt 0:04:08]} 9. Qxd3 {[%emt 0:00:11]} Nbd7 {[%emt 0:01:01]} 10. O-O-O {[%emt 0:08:21]} b5 {[%emt 0:14:20]} 11. h4 {[%emt 0:07:09]} a5 {[%emt 0:09:41]} 12. Bxf6 {[%emt 0:01:47]} Bxf6 {[%emt 0:09:46]} 13. g4 {[%emt 0:01:49]} a4 {[%emt 0:08:48]} 14. e4 {[%emt 0:07:40]} b4 {[%emt 0:09:26]} 15. Ne2 {[%emt 0:01:52]} dxe4 {[%emt 0:12:40]} 16. Qxe4+ {[%emt 0:00:32]} Be7 {[%emt 0:00:28]} 17. Kb1 {[%emt 0:12:09]} Rc8 {[%emt 0:03:13]} 18. g5 {[%emt 0:06:33]} O-O {[%emt 0:08:07]} 19. Rdg1 {[%emt 0:04:01]} Re8 {[%emt 0:02:17]} 20. Qg4 {[%emt 0:06:07]} Nf8 {[%emt 0:02:22]} 21. h5 {[%emt 0:08:48]} Qd7 {[%emt 0:00:45]} 22. Qg2 {[%emt 0:09:18]} Qf5+ {[%emt 0:00:41]} 23. Ka1 {[%emt 0:02:23]} Bd6 {[%emt 0:01:40]} 24. Ng3 {[%emt 0:04:37]} Qc2 {[%emt 0:01:09]} 25. Rc1 {[%emt 0:02:01]} Qd3 {[%emt 0:00:29]} 26. Rhd1 {[%emt 0:02:32]} Qb5 {[%emt 0:00:35]} 27. g6 {[%emt 0:04:18]} fxg6 {[%emt 0:01:38]} 28. hxg6 {[%emt 0:00:32]} Nxg6 {[%emt 0:00:30]} 29. Qh3 {[%emt 0:01:31]} b3 {[%emt 0:02:01]} 30. Nf5 {[%emt 0:01:55]} Bf8 {[%emt 0:01:23]} 31. Rh1 {[%emt 0:02:01]} h6 {[%emt 0:00:31]} 32. Rcg1 {[%emt 0:00:54]} Kf7 {[%emt 0:00:53]} 33. Qh5 {[%emt 0:00:12]} Re6 {[%emt 0:00:13]} 34. Ne5+ {[%emt 0:00:19]} Ke8 {[%emt 0:00:44]} 35. Rxg6 {[%emt 0:00:33]} Kd8 {[%emt 0:00:32]} 36. Rxe6 {[%emt 0:00:18]} Rb8 {[%emt 0:00:38]} 37. Qe8+ {[%emt 0:00:34]} Kc7 {[%emt 0:00:02]} 38. Qd7+ {[%emt 0:00:25]} Kb6 {[%emt 0:00:06]} 39. Qxc6+ {[%emt 0:00:42]} Ka5 {[%emt 0:00:14]} 40. Qxb5+ {[%emt 0:00:24]} Rxb5 {[%emt 0:00:01]} 41. Nc6+ {[%emt 0:31:07]} Kb6 {[%emt 0:30:06]} 42. Ne5+ {[%emt 0:00:31]} Ka5 {[%emt 0:00:02]} 43. a3 {[%emt 0:00:00]} Rb7 {[%emt 0:00:00]} 44. Nc4+ {[%emt 0:00:00]} 1-0

[Event "DLM Youth 2024"]
[Site "Tuebingen"]
[Date "2024.10.03"]
[Round "1"]
[White "Didas, Emma"]
[Black "Baklan, Kira"]
[Result "1-0"]
[ECO "C01"]
[WhiteElo "1078"]
[BlackElo "1550"]
[Annotator "NA RC"]
[PlyCount "151"]
[EventDate "2024.10.03"]
[EventType "team-swiss"]
[EventRounds "7"]
[EventCountry "GER"]
[SourceTitle "playchess.com"]
[Source "ChessBase"]
[SourceQuality "1"]
[TimeControl "40/5400+30:1800+30"]

1. e4 {[%emt 0:00:30]} e6 {[%emt 0:00:05]} 2. d4 {[%emt 0:00:05]} d5 {[%emt 0:00:10]} 3. exd5 {[%emt 0:00:08]} exd5 {[%emt 0:00:05]} 4. Bd3 {[%emt 0:00:09]} Bd6 {[%emt 0:01:10]} 5. Ne2 {[%emt 0:00:24]} Nf6 {[%emt 0:00:14]} 6. O-O {[%emt 0:00:31]} h6 {[%emt 0:00:32]} 7. Re1 {[%emt 0:01:27]} O-O {[%emt 0:00:30]} 8. Bf4 {[%emt 0:00:19]} Bg4 {[%emt 0:01:28]} 9. f3 {[%emt 0:00:34]} Be6 {[%emt 0:00:50]} 10. Nd2 {[%emt 0:02:40]} Nc6 {[%emt 0:00:33]} 11. c3 {[%emt 0:00:10]} Ne7 {[%emt 0:01:14]} 12. Nf1 {[%emt 0:01:58]} Nh5 {[%emt 0:02:33]} 13. Bxd6 {[%emt 0:00:53]} Qxd6 {[%emt 0:00:14]} 14. Nfg3 {[%emt 0:01:34]} Nf6 {[%emt 0:01:01]} 15. Qc2 {[%emt 0:02:00]} b6 {[%emt 0:02:10]} 16. Nf5 {[%emt 0:04:55]} Nxf5 {[%emt 0:00:39]} 17. Bxf5 {[%emt 0:00:14]} c5 {[%emt 0:01:27]} 18. Bxe6 {[%emt 0:00:51]} fxe6 {[%emt 0:00:19]} 19. b3 {[%emt 0:01:08]} Rac8 {[%emt 0:01:07]} 20. Qd2 {[%emt 0:01:38]} Nh5 {[%emt 0:04:23]} 21. dxc5 {[%emt 0:01:29]} bxc5 {[%emt 0:00:13]} 22. c4 {[%emt 0:00:59]} Rcd8 {[%emt 0:01:17]} 23. cxd5 {[%emt 0:00:40]} exd5 {[%emt 0:00:12]} 24. Rad1 {[%emt 0:00:49]} Nf4 {[%emt 0:00:46]} 25. Nc3 {[%emt 0:01:04]} Rf6 {[%emt 0:03:08]} 26. g3 {[%emt 0:01:21]} Nh3+ {[%emt 0:01:59]} 27. Kg2 {[%emt 0:01:43]} Ng5 {[%emt 0:01:26]} 28. f4 {[%emt 0:01:34]} Nf7 {[%emt 0:01:11]} 29. Qxd5 {[%emt 0:01:14]} Qb6 {[%emt 0:05:06]} 30. Qe4 {[%emt 0:01:28]} Rxd1 {[%emt 0:01:46]} 31. Rxd1 {[%emt 0:00:16]} Re6 {[%emt 0:00:36]} 32. Qd3 {[%emt 0:01:01]} Qc6+ {[%emt 0:01:09]} 33. Kg1 {[%emt 0:01:01]} Qe8 {[%emt 0:01:08]} 34. Kf2 {[%emt 0:02:30]} g5 {[%emt 0:01:16]} 35. Nd5 {[%emt 0:01:16]} Qc6 {[%emt 0:03:25]} 36. Re1 {[%emt 0:02:04]} Rxe1 {[%emt 0:01:02]} 37. Kxe1 {[%emt 0:00:11]} Qe6+ {[%emt 0:00:13]} 38. Kf2 {[%emt 0:00:32]} Nd6 {[%emt 0:03:34]} 39. Nc7 {[%emt 0:01:15]} Qf6 {[%emt 0:02:00]} 40. Qd5+ {[%emt 0:00:43]} Nf7 {[%emt 0:01:03]} 41. Kf3 {[%emt 0:34:45]} Qc3+ {[%emt 0:30:37]} 42. Ke2 {[%emt 0:00:27]} Qc2+ {[%emt 0:00:27]} 43. Qd2 {[%emt 0:00:18]} Qe4+ {[%emt 0:00:13]} 44. Kf2 {[%emt 0:00:51]} Qh1 {[%emt 0:00:47]} 45. Ke3 {[%emt 0:01:24]} gxf4+ {[%emt 0:00:48]} 46. gxf4 {[%emt 0:01:59]} Qg1+ {[%emt 0:00:18]} 47. Kd3 {[%emt 0:00:30]} Qg4 {[%emt 0:01:19]} 48. Kc4 {[%emt 0:00:50]} Qc8 {[%emt 0:02:18]} 49. Qg2+ {[%emt 0:01:20]} Kh7 {[%emt 0:00:56]} 50. Qe4+ {[%emt 0:00:42]} Kg7 {[%emt 0:00:42]} 51. Ne6+ {[%emt 0:00:19]} Kh8 {[%emt 0:01:16]} 52. Qg6 {[%emt 0:01:12]} Qg8 {[%emt 0:03:08]} 53. Qxg8+ {[%emt 0:00:36]} Kxg8 {[%emt 0:00:06]} 54. Nxc5 {[%emt 0:00:03]} Kg7 {[%emt 0:00:58]} 55. a4 {[%emt 0:00:52]} Nd6+ {[%emt 0:01:49]} 56. Kd5 {[%emt 0:00:32]} Nf5 {[%emt 0:00:18]} 57. b4 {[%emt 0:00:43]} Ne3+ {[%emt 0:00:08]} 58. Kc6 {[%emt 0:00:19]} Nf1 {[%emt 0:00:31]} 59. h3 {[%emt 0:01:10]} h5 {[%emt 0:00:10]} 60. b5 {[%emt 0:00:12]} h4 {[%emt 0:00:21]} 61. a5 {[%emt 0:00:43]} Nh2 {[%emt 0:00:51]} 62. b6 {[%emt 0:00:39]} axb6 {[%emt 0:00:49]} 63. axb6 {[%emt 0:00:08]} Nf3 {[%emt 0:00:07]} 64. b7 {[%emt 0:00:47]} Nd4+ {[%emt 0:00:17]} 65. Kb6 {[%emt 0:00:34]} Nf5 {[%emt 0:00:20]} 66. b8=Q {[%emt 0:00:20]} Ne7 {[%emt 0:00:15]} 67. Qc7 {[%emt 0:00:34]} Kf8 {[%emt 0:00:09]} 68. Qd8+ {[%emt 0:00:34]} Kf7 {[%emt 0:00:10]} 69. Ne4 {[%emt 0:01:04]} Nf5 {[%emt 0:00:15]} 70. Qd5+ {[%emt 0:00:27]} Kg6 {[%emt 0:00:16]} 71. Qe6+ {[%emt 0:00:16]} Kh5 {[%emt 0:00:15]} 72. Qxf5+ {[%emt 0:00:16]} Kh6 {[%emt 0:00:10]} 73. Qf6+ {[%emt 0:00:26]} Kh7 {[%emt 0:00:18]} 74. Ng5+ {[%emt 0:00:19]} Kg8 {[%emt 0:00:14]} 75. Qf7+ {[%emt 0:00:14]} Kh8 {[%emt 0:00:10]} 76. Qh7# {[%emt 0:00:07]} 1-0

[Event "DLM Youth 2024"]
[Site "Tuebingen"]
[Date "2024.10.03"]
[Round "2"]
[White "Ermitsch, Magnus"]
[Black "Pubantz, Jan"]
[Result "1-0"]
[ECO "B11"]
[WhiteElo "2396"]
[BlackElo "2318"]
[Annotator "RC"]
[PlyCount "131"]
[EventDate "2024.10.03"]
[EventType "team-swiss"]
[EventRounds "7"]
[EventCountry "GER"]
[SourceTitle "playchess.com"]
[Source "ChessBase"]
[SourceQuality "1"]
[TimeControl "40/5400+30:1800+30"]

1. e4 {[%emt 0:00:01]} c6 {[%emt 0:00:04]} 2. Nf3 {[%emt 0:00:05]} d5 {[%emt 0:00:03]} 3. Nc3 {[%emt 0:00:05]} dxe4 {[%emt 0:00:05]} 4. Nxe4 {[%emt 0:00:05]} Nf6 {[%emt 0:00:03]} 5. Qe2 {[%emt 0:00:06]} Nxe4 {[%emt 0:00:04]} 6. Qxe4 {[%emt 0:00:04]} Nd7 {[%emt 0:00:06]} 7. Bc4 {[%emt 0:00:05]} Nf6 {[%emt 0:00:05]} 8. Ne5 {[%emt 0:00:04]} e6 {[%emt 0:00:03]} 9. Qe2 {[%emt 0:00:04]} b5 {[%emt 0:00:22]} 10. Bb3 {[%emt 0:00:05]} Qc7 {[%emt 0:04:50]} 11. d4 {[%emt 0:00:25]} Bd6 {[%emt 0:00:40]} 12. a4 {[%emt 0:00:06]} O-O {[%emt 0:11:05]} 13. axb5 {[%emt 0:01:15]} cxb5 14. Qxb5 {[%emt 0:00:07]} a5 {[%emt 0:20:08]} 15. Qc6 {[%emt 0:00:05]} Qxc6 {[%emt 0:09:03]} 16. Nxc6 {[%emt 0:00:06]} Bb7 {[%emt 0:00:18]} 17. Ne5 {[%emt 0:00:14]} Bxg2 {[%emt 0:01:53]} 18. Rg1 {[%emt 0:01:16]} Be4 {[%emt 0:01:12]} 19. Bh6 {[%emt 0:00:06]} Bg6 {[%emt 0:06:45]} 20. Nxg6 {[%emt 0:00:07]} hxg6 {[%emt 0:01:30]} 21. Be3 {[%emt 0:00:04]} Bxh2 {[%emt 0:04:20]} 22. Rg5 {[%emt 0:00:05]} Bc7 {[%emt 0:01:16]} 23. Rc5 {[%emt 0:00:05]} Rfc8 {[%emt 0:06:18]} 24. Ra4 {[%emt 0:11:12]} Nd7 {[%emt 0:06:09]} 25. Rb5 {[%emt 0:01:24]} Rab8 {[%emt 0:03:06]} 26. Rxb8 {[%emt 0:01:59]} Rxb8 {[%emt 0:00:01]} 27. Bd2 {[%emt 0:02:32]} Rb5 {[%emt 0:02:54]} 28. Rc4 {[%emt 0:02:50]} Rb7 {[%emt 0:00:45]} 29. Ra4 {[%emt 0:06:10]} Rb5 {[%emt 0:00:53]} 30. Bc3 {[%emt 0:09:03]} Kf8 {[%emt 0:04:08]} 31. Bc4 {[%emt 0:02:06]} Rb8 {[%emt 0:04:04]} 32. Be2 {[%emt 0:02:11]} e5 {[%emt 0:09:53]} 33. d5 {[%emt 0:01:19]} Ke7 {[%emt 0:00:53]} 34. b3 {[%emt 0:05:19]} Ra8 {[%emt 0:02:13]} 35. Bf3 {[%emt 0:02:16]} Kd6 {[%emt 0:01:07]} 36. Bb4+ {[%emt 0:01:00]} axb4 {[%emt 0:01:06]} 37. Rxa8 {[%emt 0:00:06]} f5 {[%emt 0:00:32]} 38. Rg8 {[%emt 0:01:54]} e4 {[%emt 0:00:30]} 39. Be2 {[%emt 0:00:07]} Ne5 {[%emt 0:01:01]} 40. Rxg7 {[%emt 0:00:52]} f4 {[%emt 0:00:28]} 41. Bc4 {[%emt 0:31:44]} g5 {[%emt 0:03:47]} 42. Rg8 {[%emt 0:00:00]} g4 {[%emt 0:03:43]} 43. Kf1 {[%emt 0:00:00]} f3 {[%emt 0:02:36]} 44. Rf8 {[%emt 0:00:00]} Kc5 {[%emt 0:09:57]} 45. Ba6 {[%emt 0:00:00]} Kd4 {[%emt 0:05:54]} 46. Rg8 {[%emt 0:00:28]} Bd6 {[%emt 0:01:14]} 47. Bc8 {[%emt 0:12:15]} Kc3 {[%emt 0:00:37]} 48. Bxg4 {[%emt 0:15:41]} Nxg4 {[%emt 0:03:44]} 49. Rxg4 {[%emt 0:00:07]} Kd4 {[%emt 0:00:03]} 50. Rg8 {[%emt 0:13:08]} Kxd5 {[%emt 0:00:28]} 51. Rd8 {[%emt 0:00:15]} Kc5 {[%emt 0:00:30]} 52. Rc8+ Kd5 {[%emt 0:00:30]} 53. c3 {[%emt 0:01:39]} bxc3 {[%emt 0:01:55]} 54. Rxc3 {[%emt 0:00:13]} Bb4 {[%emt 0:00:45]} 55. Rc8 {[%emt 0:01:16]} Ba5 {[%emt 0:01:33]} 56. Ra8 {[%emt 0:00:28]} Bb6 {[%emt 0:00:38]} 57. Rb8 {[%emt 0:01:01]} Bc5 {[%emt 0:00:37]} 58. Rb5 {[%emt 0:01:33]} Kc6 {[%emt 0:00:10]} 59. Rxc5+ {[%emt 0:00:56]} Kxc5 {[%emt 0:00:01]} 60. Ke1 {[%emt 0:00:11]} Kb4 {[%emt 0:01:12]} 61. Kd2 {[%emt 0:00:05]} Kxb3 {[%emt 0:00:19]} 62. Ke3 {[%emt 0:00:18]} Kc4 {[%emt 0:00:02]} 63. Kxe4 {[%emt 0:00:06]} Kc5 {[%emt 0:00:20]} 64. Kxf3 {[%emt 0:00:30]} Kd6 {[%emt 0:00:03]} 65. Kf4 {[%emt 0:00:00]} Ke6 {[%emt 0:00:16]} 66. Kg5 {[%emt 0:00:00]} 1-0

[Event "DLM Youth 2024"]
[Site "Tuebingen"]
[Date "2024.10.03"]
[Round "2"]
[White "Chassard, Cedric"]
[Black "Haack, Kevin"]
[Result "0-1"]
[ECO "C02"]
[WhiteElo "2289"]
[BlackElo "2305"]
[Annotator "RC"]
[PlyCount "72"]
[EventDate "2024.10.03"]
[EventType "team-swiss"]
[EventRounds "7"]
[EventCountry "GER"]
[SourceTitle "playchess.com"]
[Source "ChessBase"]
[SourceQuality "1"]
[TimeControl "40/5400+30:1800+30"]

1. e4 {[%emt 0:00:02]} e6 {[%emt 0:00:18]} 2. d4 {[%emt 0:00:05]} d5 {[%emt 0:00:03]} 3. e5 {[%emt 0:00:47]} c5 {[%emt 0:00:09]} 4. c3 {[%emt 0:00:03]} Nc6 {[%emt 0:00:07]} 5. Nf3 {[%emt 0:00:05]} Bd7 {[%emt 0:00:04]} 6. Be2 {[%emt 0:00:08]} f6 {[%emt 0:00:16]} 7. O-O {[%emt 0:01:21]} fxe5 {[%emt 0:00:06]} 8. Nxe5 {[%emt 0:01:23]} Nxe5 {[%emt 0:00:12]} 9. dxe5 {[%emt 0:00:04]} Qc7 {[%emt 0:00:07]} 10. Re1 {[%emt 0:00:13]} O-O-O {[%emt 0:00:38]} 11. Bf1 {[%emt 0:02:59]} Ne7 {[%emt 0:05:05]} 12. Bf4 {[%emt 0:09:23]} Nf5 {[%emt 0:08:31]} 13. c4 {[%emt 0:21:46]} dxc4 {[%emt 0:05:22]} 14. Bxc4 {[%emt 0:03:15]} Be7 {[%emt 0:04:04]} 15. Nc3 {[%emt 0:08:15]} Kb8 {[%emt 0:06:28]} 16. Qc1 {[%emt 0:02:12]} g5 {[%emt 0:11:14]} 17. Be3 {[%emt 0:08:33]} h5 {[%emt 0:04:45]} 18. Bd3 {[%emt 0:07:27]} Bc6 {[%emt 0:05:14]} 19. Be4 {[%emt 0:01:18]} Bxe4 {[%emt 0:07:51]} 20. Nxe4 {[%emt 0:00:35]} Nxe3 {[%emt 0:01:17]} 21. Qxe3 {[%emt 0:00:24]} Qxe5 {[%emt 0:00:28]} 22. Rac1 {[%emt 0:05:56]} Rhf8 {[%emt 0:09:39]} 23. Qb3 {[%emt 0:08:27]} Qf5 {[%emt 0:05:48]} 24. Qg3+ {[%emt 0:02:25]} Ka8 {[%emt 0:03:55]} 25. Qc7 {[%emt 0:01:38]} Qf7 {[%emt 0:01:11]} 26. Rc3 {[%emt 0:01:49]} Rc8 {[%emt 0:01:56]} 27. Qa5 {[%emt 0:03:29]} Rc6 {[%emt 0:07:34]} 28. Rd1 {[%emt 0:02:29]} Qe8 {[%emt 0:03:18]} 29. Rcd3 {[%emt 0:03:25]} a6 {[%emt 0:04:03]} 30. Rd7 {[%emt 0:01:34]} Ka7 {[%emt 0:04:09]} 31. Nc3 {[%emt 0:02:52]} Bf6 {[%emt 0:00:32]} 32. Nb5+ {[%emt 0:01:05]} Kb8 {[%emt 0:00:00]} 33. Nc7 {[%emt 0:00:52]} Qc8 {[%emt 0:00:10]} 34. Nxe6 {[%emt 0:00:39]} Rxe6 {[%emt 0:00:10]} 35. Qa4 {[%emt 0:00:20]} Bd4 {[%emt 0:01:11]} 36. Kh1 {[%emt 0:00:37]} b5 {[%emt 0:01:05]} 0-1

[Event "DLM Youth 2024"]
[Site "Tuebingen"]
[Date "2024.10.03"]
[Round "2"]
[White "Bornholdt, Joa Max"]
[Black "Sauer, Tim"]
[Result "1-0"]
[ECO "E07"]
[WhiteElo "2268"]
[BlackElo "2081"]
[Annotator "RC"]
[PlyCount "63"]
[EventDate "2024.10.03"]
[EventType "team-swiss"]
[EventRounds "7"]
[EventCountry "GER"]
[SourceTitle "playchess.com"]
[Source "ChessBase"]
[SourceQuality "1"]
[TimeControl "40/5400+30:1800+30"]

1. d4 {[%emt 0:00:32]} d5 {[%emt 0:00:11]} 2. Nf3 {[%emt 0:00:37]} Nf6 {[%emt 0:00:12]} 3. g3 {[%emt 0:01:07]} e6 {[%emt 0:00:47]} 4. Bg2 {[%emt 0:00:13]} Be7 {[%emt 0:00:46]} 5. O-O {[%emt 0:00:10]} c6 {[%emt 0:01:42]} 6. b3 {[%emt 0:03:29]} Nbd7 {[%emt 0:01:51]} 7. Bb2 {[%emt 0:01:18]} b6 {[%emt 0:01:01]} 8. c4 {[%emt 0:01:43]} Bb7 {[%emt 0:00:11]} 9. Nc3 {[%emt 0:02:57]} O-O {[%emt 0:02:29]} 10. Rc1 {[%emt 0:14:38]} Bd6 {[%emt 0:12:17]} 11. Re1 {[%emt 0:08:35]} Qe7 {[%emt 0:17:55]} 12. e4 {[%emt 0:10:18]} dxe4 {[%emt 0:00:25]} 13. Ng5 {[%emt 0:08:04]} Rfd8 {[%emt 0:22:47]} 14. Qc2 {[%emt 0:10:06]} Ba3 {[%emt 0:17:44]} 15. Bxa3 {[%emt 0:12:46]} Qxa3 {[%emt 0:00:08]} 16. Ngxe4 {[%emt 0:05:49]} Rab8 {[%emt 0:11:59]} 17. c5 {[%emt 0:05:47]} Nd5 {[%emt 0:02:52]} 18. Qb1 {[%emt 0:10:04]} Qb4 {[%emt 0:03:25]} 19. Ng5 {[%emt 0:00:42]} N7f6 {[%emt 0:00:40]} 20. Nxd5 {[%emt 0:00:30]} exd5 {[%emt 0:00:23]} 21. Re7 {[%emt 0:00:33]} Qxd4 {[%emt 0:00:33]} 22. Rxf7 {[%emt 0:00:26]} Qd2 {[%emt 0:00:33]} 23. h4 {[%emt 0:00:54]} h6 {[%emt 0:00:32]} 24. Rd1 {[%emt 0:00:20]} Qe2 {[%emt 0:00:29]} 25. Bf3 {[%emt 0:00:45]} Qxf3 {[%emt 0:00:34]} 26. Rxg7+ {[%emt 0:00:13]} Kxg7 {[%emt 0:00:08]} 27. Nxf3 {[%emt 0:00:30]} bxc5 {[%emt 0:00:30]} 28. Ne5 {[%emt 0:00:30]} Ne4 {[%emt 0:00:30]} 29. Qb2 {[%emt 0:00:30]} Kh7 {[%emt 0:00:30]} 30. f3 {[%emt 0:00:30]} Nxg3 {[%emt 0:00:30]} 31. Qc2+ {[%emt 0:00:30]} Kh8 {[%emt 0:00:30]} 32. Qg6 {[%emt 0:00:22]} 1-0